bitfinex/quotes_BTCUSD_20240831
["timestamp","ask_amount","ask_price","bid_price","bid_amount"]
[1725105316306,3.04575647,59294.0,59293.0,0.0008998]
[1725105316556,3.0192977,59294.0,59293.0,0.0008998]
[1725105316991,3.0212977,59294.0,59293.0,0.0008998]
[1725105318293,3.0192977,59294.0,59293.0,0.0008998]
[1725105318516,3.18784934,59294.0,59293.0,0.0008998]
[1725105319884,3.21430833,59294.0,59293.0,0.0008998]
[1725105320943,3.21630833,59294.0,59293.0,0.0008998]
[1725105321155,3.21430833,59294.0,59293.0,0.0008998]
[1725105321369,3.04575669,59294.0,59293.0,0.0008998]
[1725105322677,3.0192977,59294.0,59293.0,0.0008998]
[1725105326011,3.04575676,59294.0,59293.0,0.0008998]
[1725105326478,3.0900977,59294.0,59293.0,0.0008998]
[1725105326730,3.0920977,59294.0,59293.0,0.0008998]
[1725105326981,3.26064934,59294.0,59293.0,0.0008998]
[1725105327207,3.25064934,59294.0,59293.0,0.0008998]
[1725105327403,0.173662,59290.0,59289.0,0.1508998]
[1725105327629,1.28951714,59290.0,59289.0,0.1508998]
[1725105327872,2.30149214,59290.0,59289.0,0.1508998]
[1725105328078,2.97614214,59290.0,59289.0,0.1508998]
[1725105329194,2.99014214,59290.0,59289.0,0.1508998]
[1725105329400,3.00414214,59290.0,59289.0,0.1508998]
[1725105329839,3.03060199,59290.0,59289.0,0.1508998]
[1725105331254,3.03260199,59290.0,59289.0,0.1508998]
[1725105332379,3.03060199,59290.0,59289.0,0.1508998]
[1725105332606,3.00414214,59290.0,59289.0,0.1508998]
[1725105333749,3.00614214,59290.0,59289.0,0.1508998]
[1725105333983,3.01614214,59290.0,59289.0,0.1508998]
[1725105334210,3.18469378,59290.0,59289.0,0.1508998]
[1725105334445,3.18469378,59290.0,59289.0,0.1354436]
[1725105334680,3.15669378,59290.0,59289.0,0.1354436]
[1725105334901,3.17069378,59290.0,59289.0,0.1354436]
[1725105335104,3.18469378,59290.0,59289.0,0.1354436]
[1725105335750,3.21115503,59290.0,59289.0,0.1354436]
[1725105337460,3.21115503,59290.0,59289.0,0.1363445]
[1725105339812,1.862381,59287.0,59286.0,0.0766]
[1725105340031,1.985381,59287.0,59286.0,0.0766]
[1725105340259,1.98566083,59287.0,59286.0,0.0766]
[1725105340697,1.98366083,59287.0,59286.0,0.0766]
[1725105341119,1.99666083,59287.0,59286.0,0.0766]
[1725105341339,2.13069769,59287.0,59286.0,0.0766]
[1725105341547,2.14469769,59287.0,59286.0,0.0766]
[1725105342446,3.13727306,59287.0,59286.0,0.0766]
[1725105343104,3.16373497,59287.0,59286.0,0.0766]
[1725105345941,3.18338162,59287.0,59286.0,0.0766]
[1725105346395,3.18138162,59287.0,59286.0,0.0766]
[1725105346628,3.02060302,59287.0,59286.0,0.1716]
[1725105349811,3.04706488,59287.0,59286.0,0.1716]
[1725105351147,3.04706488,59287.0,59286.0,0.1725009]
[1725105351612,2.70972288,59287.0,59286.0,0.1725009]
[1725105352066,2.73758796,59287.0,59286.0,0.1725009]
[1725105352524,2.7111261,59287.0,59286.0,0.1725009]
[1725105355873,2.73758804,59287.0,59286.0,0.1725009]
[1725105356086,2.90641953,59287.0,59286.0,0.1725009]
[1725105356740,2.73786789,59287.0,59286.0,0.1725009]
[1725105357180,2.73986789,59287.0,59286.0,0.1725009]
[1725105359583,2.71340595,59287.0,59286.0,0.1725009]
[1725105360014,2.71340595,59287.0,59286.0,0.0775009]
[1725105362256,3.04874795,59287.0,59286.0,0.0775009]
[1725105362925,3.07521029,59287.0,59286.0,0.0775009]
[1725105364042,2.73786829,59287.0,59286.0,0.0775009]
[1725105365352,3.07521029,59287.0,59286.0,0.0775009]
[1725105365789,3.07721029,59287.0,59286.0,0.0775009]
[1725105366022,2.73986829,59287.0,59286.0,0.0775009]
[1725105366446,2.71340595,59287.0,59286.0,0.0775009]
[1725105366875,2.71140595,59287.0,59286.0,0.0775009]
[1725105367522,3.04874795,59287.0,59286.0,0.0775009]
[1725105368165,3.05074795,59287.0,59286.0,0.0775009]
[1725105368389,3.21929959,59287.0,59286.0,0.0775009]
[1725105369731,3.07721032,59287.0,59286.0,0.0775009]
[1725105371976,3.07521032,59287.0,59286.0,0.0775009]
[1725105374123,2.73786832,59287.0,59286.0,0.0775009]
[1725105374577,2.73786832,59287.0,59286.0,0.1674009]
[1725105375015,2.71458847,59287.0,59286.0,0.1674009]
[1725105376572,2.6881261,59287.0,59286.0,0.1674009]
[1725105376803,2.6889451,59287.0,59286.0,0.1674009]
[1725105379761,2.71540604,59287.0,59286.0,0.1674009]
[1725105380724,2.37806404,59287.0,59286.0,0.1674009]
[1725105382088,2.3516031,59287.0,59286.0,0.1674009]
[1725105382314,2.36006852,59287.0,59286.0,0.1674009]
[1725105382532,2.36006852,59287.0,59286.0,0.1724009]
[1725105383415,2.34706852,59287.0,59286.0,0.1724009]
[1725105383815,2.36252731,59287.0,59286.0,0.1724009]
[1725105384036,2.36852731,59287.0,59286.0,0.1724009]
[1725105386506,2.34206852,59287.0,59286.0,0.1724009]
[1725105389809,2.36852672,59287.0,59286.0,0.1724009]
[1725105391116,2.03118472,59287.0,59286.0,0.1724009]
[1725105392496,2.00472652,59287.0,59286.0,0.1724009]
[1725105395325,2.00472652,59287.0,59286.0,0.22304425]
[1725105395789,2.0311845,59287.0,59286.0,0.22304425]
[1725105396415,2.00472652,59287.0,59286.0,0.1724009]
[1725105399107,2.00472652,59287.0,59286.0,0.0775009]
[1725105399108,2.34234838,59287.0,59286.0,0.0775009]
[1725105399567,2.67969038,59287.0,59286.0,0.0775009]
[1725105399995,2.34234838,59287.0,59286.0,0.0775009]
[1725105400638,2.34206852,59287.0,59286.0,0.0775009]
[1725105401510,2.36852768,59287.0,59286.0,0.0775009]
[1725105406399,2.34206852,59287.0,59286.0,0.0775009]
[1725105409532,2.67941052,59287.0,59286.0,0.0009009]
[1725105411784,2.70587037,59287.0,59286.0,0.0009009]
[1725105416455,2.67941052,59287.0,59286.0,0.0009009]
[1725105417293,2.34206852,59287.0,59286.0,0.0009009]
[1725105417521,2.34206852,59287.0,59286.0,0.0739009]
[1725105417961,2.34206852,59287.0,59286.0,0.1686009]
[1725105419281,2.34206852,59287.0,59286.0,0.1736009]
[1725105420377,2.32442187,59287.0,59286.0,0.1736009]
[1725105421471,2.32470173,59287.0,59286.0,0.1736009]
[1725105423903,2.32442187,59287.0,59286.0,0.1736009]
[1725105424164,2.35088033,59287.0,59286.0,0.1736009]
[1725105425741,1.35830496,59287.0,59286.0,0.1736009]
[1725105428830,1.35830496,59287.0,59286.0,0.1686009]
[1725105429744,1.3318465,59287.0,59286.0,0.1686009]
[1725105432902,1.35830513,59287.0,59286.0,0.1686009]
[1725105437756,1.35830513,59287.0,59286.0,0.1736009]
[1725105440873,1.3318465,59287.0,59286.0,0.1736009]
[1725105441754,1.3318465,59287.0,59286.0,0.1686009]
[1725105444234,1.35830534,59287.0,59286.0,0.1686009]
[1725105445498,1.35830534,59287.0,59286.0,0.0739009]
[1725105445918,1.3318465,59287.0,59286.0,0.0739009]
[1725105447445,1.04590778,59287.0,59286.0,0.0739009]
[1725105448327,1.21457878,59287.0,59286.0,0.0739009]
[1725105449442,1.24103791,59287.0,59286.0,0.0739009]
[1725105453632,1.21457878,59287.0,59286.0,0.0739009]
[1725105456836,1.55192078,59287.0,59286.0,0.0739009]
[1725105457059,1.64208042,59287.0,59286.0,0.0009009]
[1725105457740,1.61562078,59287.0,59286.0,0.0009009]
[1725105461003,1.64208166,59287.0,59286.0,0.0009009]
[1725105466523,1.61562078,59287.0,59286.0,0.0009009]
[1725105469584,1.55192078,59287.0,59286.0,0.0009009]
[1725105469793,1.57838162,59287.0,59286.0,0.0009009]
[1725105473259,1.57866148,59287.0,59286.0,0.0009009]
[1725105473945,1.55220064,59287.0,59286.0,0.0009009]
[1725105477106,1.57866164,59287.0,59286.0,0.0009009]
[1725105480041,1.55220064,59287.0,59286.0,0.0009009]
[1725105483321,1.93900486,59287.0,59286.0,0.0009009]
[1725105485259,2.93158023,59287.0,59286.0,0.0009009]
[1725105486557,2.90511801,59287.0,59286.0,0.0009009]
[1725105489644,2.96841801,59287.0,59286.0,0.0009009]
[1725105489865,2.99488078,59287.0,59286.0,0.0009009]
[1725105490093,2.93158078,59287.0,59286.0,0.0009009]
[1725105493742,2.90511801,59287.0,59286.0,0.0009009]
[1725105497056,2.92258089,59287.0,59286.0,0.0009009]
[1725105497300,2.93558089,59287.0,59286.0,0.0009009]
[1725105498977,2.94458089,59287.0,59286.0,0.0009009]
[1725105499839,2.91811801,59287.0,59286.0,0.0009009]
[1725105501180,2.58077601,59287.0,59286.0,0.0009009]
[1725105501393,2.91811801,59287.0,59286.0,0.0009009]
[1725105501603,2.58077601,59287.0,59286.0,0.0009009]
[1725105503547,2.60723856,59287.0,59286.0,0.0009009]
[1725105506314,1.180735,59285.0,59284.0,0.06280295]
[1725105506736,1.280735,59285.0,59284.0,0.06280295]
[1725105506948,1.618088,59285.0,59284.0,0.06280295]
[1725105507617,1.625088,59285.0,59284.0,0.06280295]
[1725105508871,2.61766337,59285.0,59284.0,0.06280295]
[1725105509715,2.62766337,59285.0,59284.0,0.06280295]
[1725105509918,2.65412615,59285.0,59284.0,0.06280295]
[1725105512722,2.29031037,59285.0,59284.0,0.06280295]
[1725105513341,2.62766337,59285.0,59284.0,0.06280295]
[1725105514205,2.29031037,59285.0,59284.0,0.06280295]
[1725105515083,2.62766337,59285.0,59284.0,0.06280295]
[1725105515932,2.65412578,59285.0,59284.0,0.06280295]
[1725105519794,2.62766337,59285.0,59284.0,0.06280295]
[1725105520246,2.62766337,59285.0,59284.0,0.06370275]
[1725105523562,2.65412585,59285.0,59284.0,0.06370275]
[1725105524508,2.35622606,59285.0,59284.0,0.06370275]
[1725105525367,2.69357906,59285.0,59284.0,0.06370275]
[1725105526449,2.66711658,59285.0,59284.0,0.06370275]
[1725105529201,2.32976358,59285.0,59284.0,0.06370275]
[1725105529573,2.66711658,59285.0,59284.0,0.06370275]
[1725105529775,2.693579,59285.0,59284.0,0.06370275]
[1725105530013,2.356226,59285.0,59284.0,0.06370275]
[1725105531591,2.32976358,59285.0,59284.0,0.06370275]
[1725105531996,2.66711658,59285.0,59284.0,0.06370275]
[1725105532210,2.32976358,59285.0,59284.0,0.06370275]
[1725105532412,2.33058158,59285.0,59284.0,0.06370275]
[1725105534193,2.66793458,59285.0,59284.0,0.06370275]
[1725105534860,2.69439704,59285.0,59284.0,0.06370275]
[1725105536374,2.66793458,59285.0,59284.0,0.06370275]
[1725105537883,2.33058158,59285.0,59284.0,0.06370275]
[1725105538310,2.66793458,59285.0,59284.0,0.06370275]
[1725105539654,2.69439713,59285.0,59284.0,0.06370275]
[1725105542479,2.66793458,59285.0,59284.0,0.06370275]
[1725105546032,2.69439712,59285.0,59284.0,0.06370275]
[1725105549752,2.66793458,59285.0,59284.0,0.06370275]
[1725105550815,2.66793458,59285.0,59284.0,0.04189299]
[1725105553256,2.69439713,59285.0,59284.0,0.0008998]
[1725105556425,2.66793458,59285.0,59284.0,0.0008998]
[1725105560052,2.69439708,59285.0,59284.0,0.0008998]
[1725105562569,2.66793458,59285.0,59284.0,0.0008998]
[1725105564474,1.67535921,59285.0,59284.0,0.0008998]
[1725105564700,1.67535921,59285.0,59284.0,0.0681998]
[1725105566012,1.70182175,59285.0,59284.0,0.0681998]
[1725105569573,1.36446875,59285.0,59284.0,0.0681998]
[1725105569786,1.33800621,59285.0,59284.0,0.0681998]
[1725105573116,1.36446852,59285.0,59284.0,0.0681998]
[1725105574346,2.35704389,59285.0,59284.0,0.0681998]
[1725105576571,2.33058158,59285.0,59284.0,0.0681998]
[1725105581701,2.12245237,59285.0,59284.0,0.0681998]
[1725105582161,2.14891471,59285.0,59284.0,0.0681998]
[1725105582317,2.31759071,59285.0,59284.0,0.0681998]
[1725105586499,2.29112837,59285.0,59284.0,0.0681998]
[1725105589648,2.31759053,59285.0,59284.0,0.0681998]
[1725105596541,2.29112837,59285.0,59284.0,0.0681998]
[1725105599695,2.31759055,59285.0,59284.0,0.0681998]
[1725105599899,2.31759055,59285.0,59284.0,0.1500998]
[1725105599900,1.98023755,59285.0,59284.0,0.1500998]
[1725105600128,1.98023755,59285.0,59284.0,0.1550998]
[1725105600129,1.88023755,59285.0,59284.0,0.1550998]
[1725105600274,1.88023755,59285.0,59284.0,0.60580268]
[1725105600476,1.54288455,59285.0,59284.0,0.60580268]
[1725105601081,1.88023755,59285.0,59284.0,0.60580268]
[1725105601504,1.98023755,59285.0,59284.0,0.1550998]
[1725105601707,1.98051741,59285.0,59284.0,0.1550998]
[1725105602104,1.95405523,59285.0,59284.0,0.1550998]
[1725105602894,2.29140823,59285.0,59284.0,0.0681998]
[1725105603482,2.29140823,59285.0,59284.0,0.0660998]
[1725105603735,2.29112837,59285.0,59284.0,0.0660998]
[1725105604778,2.29112837,59285.0,59284.0,0.1479998]
[1725105607996,2.29140823,59285.0,59284.0,0.1479998]
[1725105610118,2.29140823,59285.0,59284.0,0.0008998]
[1725105610522,2.62876123,59285.0,59284.0,0.0008998]
[1725105610852,2.29140823,59285.0,59284.0,0.0008998]
[1725105611383,2.62876123,59285.0,59284.0,0.0008998]
[1725105612419,2.29140823,59285.0,59284.0,0.0008998]
[1725105612817,2.62876123,59285.0,59284.0,0.0008998]
[1725105615304,2.65522233,59285.0,59284.0,0.0008998]
[1725105616490,2.62876123,59285.0,59284.0,0.0008998]
[1725105619925,2.6552225,59285.0,59284.0,0.0008998]
[1725105622432,2.65494264,59285.0,59284.0,0.0008998]
[1725105626559,2.62848137,59285.0,59284.0,0.0008998]
[1725105629785,2.65494258,59285.0,59284.0,0.0008998]
[1725105633802,2.65444258,59285.0,59284.0,0.0008998]
[1725105634823,2.65472244,59285.0,59284.0,0.0008998]
[1725105635996,2.80012244,59285.0,59284.0,0.0008998]
[1725105636434,3.11101423,59285.0,59284.0,0.0008998]
[1725105641243,3.13747727,59285.0,59284.0,0.0008998]
[1725105642656,3.13947727,59285.0,59284.0,0.0008998]
[1725105643120,3.13747727,59285.0,59284.0,0.0008998]
[1725105646631,3.11101423,59285.0,59284.0,0.0008998]
[1725105647355,3.03131423,59285.0,59284.0,0.0008998]
[1725105649744,3.05777696,59285.0,59284.0,0.0008998]
[1725105650902,2.99207696,59285.0,59284.0,0.0008998]
[1725105651137,3.1606286,59285.0,59284.0,0.0008998]
[1725105652558,3.05777696,59285.0,59284.0,0.0008998]
[1725105652843,3.03331423,59285.0,59284.0,0.0008998]
[1725105653505,3.02431423,59285.0,59284.0,0.0008998]
[1725105653732,3.01431423,59285.0,59284.0,0.0008998]
[1725105653954,3.04031423,59285.0,59284.0,0.0008998]
[1725105654235,2.97461423,59285.0,59284.0,0.0008998]
[1725105654678,2.98861423,59285.0,59284.0,0.0008998]
[1725105655359,2.97661423,59285.0,59284.0,0.0008998]
[1725105655792,3.01707803,59285.0,59284.0,0.0008998]
[1725105658180,3.25322967,59285.0,59284.0,0.0008998]
[1725105658407,3.25322967,59285.0,59272.0,0.13499716]
[1725105658408,1.33068867,59285.0,59272.0,0.0843]
[1725105658622,0.16871,59273.0,59272.0,0.0843]
[1725105659057,1.518394,59273.0,59272.0,0.0843]
[1725105659262,1.618394,59273.0,59272.0,0.0843]
[1725105659460,1.64486055,59273.0,59272.0,0.0843]
[1725105660575,1.65386055,59273.0,59272.0,0.0843]
[1725105661049,1.66686055,59273.0,59272.0,0.0843]
[1725105661257,1.68504011,59273.0,59272.0,0.0843]
[1725105661708,1.68504011,59273.0,59272.0,0.1495]
[1725105661906,1.65857356,59273.0,59272.0,0.1495]
[1725105663541,2.65114893,59273.0,59272.0,0.1495]
[1725105663864,2.48243893,59273.0,59272.0,0.1495]
[1725105664089,2.65114893,59273.0,59272.0,0.1503998]
[1725105664964,2.67761563,59273.0,59272.0,0.1503998]
[1725105665389,2.67761563,59273.0,59272.0,0.0008998]
[1725105666527,2.65114893,59273.0,59272.0,0.0008998]
[1725105669918,2.6776167,59273.0,59272.0,0.0008998]
[1725105671483,2.6776167,59273.0,59272.0,0.0660998]
[1725105671690,2.6776167,59273.0,59272.0,0.1443998]
[1725105672125,2.65114893,59273.0,59272.0,0.1443998]
[1725105677031,1.180994,59272.0,59271.0,0.1656]
[1725105677241,1.618421,59272.0,59271.0,0.1]
[1725105678123,1.618421,59272.0,59271.0,0.1656]
[1725105678358,1.630421,59272.0,59271.0,0.1656]
[1725105679417,1.644421,59272.0,59271.0,0.1656]
[1725105679728,1.632421,59272.0,59271.0,0.1656]
[1725105679947,1.644421,59272.0,59271.0,0.1656]
[1725105681421,2.63699637,59272.0,59271.0,0.1656]
[1725105685099,2.46828337,59272.0,59271.0,0.1656]
[1725105685508,2.63699637,59272.0,59271.0,0.1656]
[1725105686127,2.66346471,59272.0,59271.0,0.1656]
[1725105686541,2.63699637,59272.0,59271.0,0.1656]
[1725105688243,2.63699637,59272.0,59271.0,0.1665009]
[1725105689975,2.66346488,59272.0,59271.0,0.1665009]
[1725105693682,2.66296488,59272.0,59271.0,0.1665009]
[1725105693886,2.63649637,59272.0,59271.0,0.1665009]
[1725105694301,2.63649637,59272.0,59271.0,0.1009009]
[1725105697252,2.66296503,59272.0,59271.0,0.1009009]
[1725105697888,3.00039203,59272.0,59271.0,0.1009009]
[1725105698902,3.00067189,59272.0,59271.0,0.1009009]
[1725105699110,3.00067189,59272.0,59271.0,0.0009009]
[1725105699960,2.97420323,59272.0,59271.0,0.0009009]
[1725105702076,2.97502123,59272.0,59271.0,0.0009009]
[1725105703330,3.00149061,59272.0,59271.0,0.0009009]
[1725105704136,3.06949061,59272.0,59271.0,0.0009009]
[1725105704708,3.00149061,59272.0,59271.0,0.0009009]
[1725105710614,2.97502123,59272.0,59271.0,0.0009009]
[1725105712932,2.97502123,59272.0,59271.0,0.0632009]
[1725105714081,3.00149086,59272.0,59271.0,0.0009009]
[1725105716454,2.97502123,59272.0,59271.0,0.0009009]
[1725105719884,3.00149092,59272.0,59271.0,0.0009009]
[1725105720747,2.97502123,59272.0,59271.0,0.0009009]
[1725105722986,3.00149091,59272.0,59271.0,0.0009009]
[1725105726444,2.97502123,59272.0,59271.0,0.0009009]
[1725105727113,2.63731437,59272.0,59271.0,0.0634009]
[1725105727249,2.63731437,59272.0,59271.0,0.1462009]
[1725105727457,2.63731437,59272.0,59271.0,0.19692994]
[1725105728152,2.63731437,59272.0,59271.0,0.1969249]
[1725105728326,2.63731437,59272.0,59271.0,0.1462009]
[1725105729825,2.66378241,59272.0,59271.0,0.1462009]
[1725105730688,2.63731437,59272.0,59271.0,0.1462009]
[1725105733910,2.66378225,59272.0,59271.0,0.1462009]
[1725105735169,2.32635525,59272.0,59271.0,0.1462009]
[1725105735372,2.32635525,59272.0,59271.0,0.20190278]
[1725105735821,2.32635525,59272.0,59271.0,0.20189571]
[1725105735959,2.32635525,59272.0,59271.0,0.20189593]
[1725105736397,2.29988737,59272.0,59271.0,0.20189593]
[1725105737266,2.29988737,59272.0,59271.0,0.1512009]
[1725105739801,2.3263543,59272.0,59271.0,0.1512009]
[1725105740848,1.33377893,59272.0,59271.0,0.1512009]
[1725105742828,1.307312,59272.0,59271.0,0.1512009]
[1725105743256,1.307812,59272.0,59271.0,0.1512009]
[1725105746081,1.33427876,59272.0,59271.0,0.1512009]
[1725105746467,1.307812,59272.0,59271.0,0.1512009]
[1725105755617,1.33427888,59272.0,59271.0,0.1512009]
[1725105756453,1.307812,59272.0,59271.0,0.1512009]
[1725105757673,1.307812,59272.0,59271.0,0.1462009]
[1725105758717,2.30038737,59272.0,59271.0,0.1462009]
[1725105763338,2.69881437,59272.0,59271.0,0.0009009]
[1725105763541,2.69909423,59272.0,59271.0,0.0009009]
[1725105774029,2.63809423,59272.0,59271.0,0.0009009]
[1725105775210,2.66456297,59272.0,59271.0,0.0009009]
[1725105775891,3.00198997,59272.0,59271.0,0.0009009]
[1725105776629,2.97552123,59272.0,59271.0,0.0009009]
[1725105780532,2.63809423,59272.0,59271.0,0.0009009]
[1725105780984,2.66456326,59272.0,59271.0,0.0009009]
[1725105786481,2.63809423,59272.0,59271.0,0.0009009]
[1725105788300,2.97552123,59272.0,59271.0,0.0009009]
[1725105788523,2.63809423,59272.0,59271.0,0.0009009]
[1725105789892,2.66456414,59272.0,59271.0,0.0009009]
[1725105790746,3.00199114,59272.0,59271.0,0.0009009]
[1725105791409,2.66456414,59272.0,59271.0,0.0009009]
[1725105792575,2.63809423,59272.0,59271.0,0.0009009]
[1725105794476,2.97552123,59272.0,59271.0,0.0009009]
[1725105794700,2.63809423,59272.0,59271.0,0.0009009]
[1725105795839,2.66456426,59272.0,59271.0,0.0009009]
[1725105796532,2.63809423,59272.0,59271.0,0.0009009]
[1725105800275,2.97552123,59272.0,59271.0,0.0009009]
[1725105800489,2.63809423,59272.0,59271.0,0.0009009]
[1725105802679,2.66456431,59272.0,59271.0,0.0009009]
[1725105806561,2.63809423,59272.0,59271.0,0.0009009]
[1725105806778,2.97552123,59272.0,59271.0,0.0009009]
[1725105816397,2.63809423,59272.0,59271.0,0.0009009]
[1725105817278,2.63809423,59272.0,59271.0,0.1466009]
[1725105817279,2.63781437,59272.0,59271.0,0.1466009]
[1725105817497,2.30038737,59272.0,59271.0,0.1516009]
[1725105818137,2.30038737,59272.0,59271.0,0.20233648]
[1725105818577,1.307812,59272.0,59271.0,0.20233648]
[1725105818792,1.295812,59272.0,59271.0,0.20233648]
[1725105819220,1.285812,59272.0,59271.0,0.20233648]
[1725105819452,1.291812,59272.0,59271.0,0.20233648]
[1725105819685,1.287812,59272.0,59271.0,0.20233648]
[1725105819943,1.290812,59272.0,59271.0,0.20233648]
[1725105820990,1.290812,59272.0,59271.0,0.20232949]
[1725105821461,1.290812,59272.0,59271.0,0.1516009]
[1725105823432,1.31727961,59272.0,59271.0,0.1516009]
[1725105824485,1.33507093,59272.0,59271.0,0.1516009]
[1725105824696,1.33507093,59272.0,59271.0,0.1466009]
[1725105829477,1.30860332,59272.0,59271.0,0.1466009]
[1725105830521,2.30117869,59272.0,59271.0,0.1466009]
[1725105832879,2.32764653,59272.0,59271.0,0.1466009]
[1725105833298,2.30117869,59272.0,59271.0,0.1466009]
[1725105845535,2.30117869,59272.0,59271.0,0.14682495]
[1725105845980,1.96375169,59272.0,59271.0,0.15182495]
[1725105847255,1.62632469,59272.0,59271.0,0.15182495]
[1725105847720,1.62632469,59272.0,59271.0,0.20250194]
[1725105848166,1.96375169,59272.0,59271.0,0.20250194]
[1725105848396,0.97117632,59272.0,59271.0,0.15182495]
[1725105848637,0.63374932,59272.0,59271.0,0.20249702]
[1725105848864,0.97117632,59272.0,59271.0,0.20249247]
[1725105849306,0.97117632,59272.0,59271.0,0.15182495]
[1725105851275,1.30860332,59272.0,59271.0,0.15182495]
[1725105851476,0.97117632,59272.0,59271.0,0.15182495]
[1725105851674,0.97117632,59272.0,59271.0,0.1516009]
[1725105853275,0.99764299,59272.0,59271.0,0.1516009]
[1725105854084,1.33506999,59272.0,59271.0,0.1516009]
[1725105856617,1.30860332,59272.0,59271.0,0.1516009]
[1725105859539,1.30860332,59272.0,59271.0,0.0712009]
[1725105860424,1.30860332,59272.0,59271.0,0.0009009]
[1725105860636,1.64603032,59272.0,59271.0,0.0656009]
[1725105860876,1.30860332,59272.0,59271.0,0.0656009]
[1725105861741,1.30860332,59272.0,59271.0,0.0009009]
[1725105864093,1.33507049,59272.0,59271.0,0.0009009]
[1725105866385,2.32764586,59272.0,59271.0,0.0009009]
[1725105866602,2.30117869,59272.0,59271.0,0.0009009]
[1725105867703,2.30117869,59272.0,59271.0,0.0516116]
[1725105868816,2.30117869,59272.0,59271.0,0.0009009]
[1725105869023,2.30117869,59272.0,59271.0,0.1163116]
[1725105870592,2.30117869,59272.0,59271.0,0.19531342]
[1725105870824,2.30117869,59272.0,59271.0,0.1446009]
[1725105871046,2.30117869,59272.0,59271.0,0.59538554]
[1725105871498,2.30117869,59272.0,59271.0,0.51931675]
[1725105873540,2.30117869,59272.0,59271.0,0.51930678]
[1725105873799,2.30117869,59272.0,59271.0,0.60036436]
[1725105874747,2.3276455,59272.0,59271.0,0.60036436]
[1725105876412,2.30117869,59272.0,59271.0,0.60036436]
[1725105878110,1.30860332,59272.0,59271.0,0.60036436]
[1725105878353,1.30860332,59272.0,59271.0,0.1496009]
[1725105878586,1.30860332,59272.0,59271.0,0.60035826]
[1725105880920,1.30860332,59272.0,59271.0,0.22565238]
[1725105881130,1.30860332,59272.0,59271.0,0.1496009]
[1725105881364,1.30860332,59272.0,59271.0,0.0059009]
[1725105881991,1.30860332,59272.0,59271.0,0.05659929]
[1725105882450,1.30860332,59272.0,59271.0,0.0059009]
[1725105883724,1.03989032,59272.0,59271.0,0.0059009]
[1725105884006,1.20860332,59272.0,59271.0,0.0059009]
[1725105884656,1.23507037,59272.0,59271.0,0.0059009]
[1725105885920,1.33507037,59272.0,59271.0,0.0059009]
[1725105886548,1.30860332,59272.0,59271.0,0.0059009]
[1725105894606,1.33507045,59272.0,59271.0,0.0059009]
[1725105896297,1.67249745,59272.0,59271.0,0.0009009]
[1725105896505,1.64603032,59272.0,59271.0,0.0009009]
[1725105901173,2.04755732,59272.0,59271.0,0.0009009]
[1725105901761,3.04013269,59272.0,59271.0,0.0009009]
[1725105901964,3.03713269,59272.0,59271.0,0.0009009]
[1725105902369,2.70870569,59272.0,59271.0,0.0009009]
[1725105902579,2.64460569,59272.0,59271.0,0.0009009]
[1725105903231,2.64386469,59272.0,59271.0,0.0009009]
[1725105903683,2.63786469,59272.0,59271.0,0.0009009]
[1725105903890,2.97529169,59272.0,59271.0,0.0009009]
[1725105904097,2.98829169,59272.0,59271.0,0.0009009]
[1725105904353,2.65086469,59272.0,59271.0,0.0009009]
[1725105904555,2.67733269,59272.0,59271.0,0.0009009]
[1725105906467,2.65086469,59272.0,59271.0,0.0009009]
[1725105909559,2.98829169,59272.0,59271.0,0.0009009]
[1725105909759,2.65086469,59272.0,59271.0,0.0009009]
[1725105911003,2.98829169,59272.0,59271.0,0.0009009]
[1725105912293,3.05239169,59272.0,59271.0,0.0009009]
[1725105914470,2.98829169,59272.0,59271.0,0.0009009]
[1725105914658,3.01475975,59272.0,59271.0,0.0009009]
[1725105914859,3.07855975,59272.0,59271.0,0.0009009]
[1725105915440,1.856002,59267.0,59266.0,0.0008998]
[1725105915653,2.019802,59267.0,59266.0,0.0008998]
[1725105917747,1.956002,59267.0,59266.0,0.0008998]
[1725105918252,1.798275,59267.0,59266.0,0.0008998]
[1725105918471,1.974002,59267.0,59266.0,0.0008998]
[1725105919871,2.96657737,59267.0,59266.0,0.0008998]
[1725105922665,2.99304808,59267.0,59266.0,0.0008998]
[1725105923483,2.99304808,59267.0,59266.0,0.0641998]
[1725105926590,2.96657737,59267.0,59266.0,0.0641998]
[1725105927046,2.96657737,59267.0,59266.0,0.0008998]
[1725105928693,2.96739537,59267.0,59266.0,0.0008998]
[1725105931932,2.97427796,59267.0,59266.0,0.0008998]
[1725105932301,2.98029351,59267.0,59266.0,0.0008998]
[1725105934775,3.00676501,59267.0,59266.0,0.0008998]
[1725105935162,1.21586301,59267.0,59252.0,0.005]
[1725105935363,0.168764,59254.0,59253.0,0.0616998]
[1725105935528,0.168764,59254.0,59253.0,0.0008998]
[1725105935529,1.83639737,59254.0,59253.0,0.0008998]
[1725105935729,2.62433061,59254.0,59253.0,0.0008998]
[1725105935943,2.96185961,59254.0,59253.0,0.0008998]
[1725105936170,2.98833324,59254.0,59253.0,0.0008998]
[1725105936384,2.96185961,59254.0,59253.0,0.0008998]
[1725105937630,2.97285961,59254.0,59253.0,0.0008998]
[1725105938244,2.97985961,59254.0,59253.0,0.0008998]
[1725105939502,2.99812698,59254.0,59253.0,0.0008998]
[1725105944470,0.16877,59252.0,59251.0,0.008998]
[1725105944679,0.168779,59249.0,59246.0,0.0658]
[1725105944891,0.943895,59249.0,59246.0,0.0658]
[1725105945138,1.29433407,59249.0,59246.0,0.0658]
[1725105945311,1.63189207,59249.0,59246.0,0.0658]
[1725105945525,1.63189207,59249.0,59248.0,0.145798]
[1725105945965,1.64489207,59249.0,59248.0,0.069798]
[1725105946146,1.67136981,59249.0,59248.0,0.069798]
[1725105946465,1.64489207,59249.0,59248.0,0.069798]
[1725105948328,1.65389207,59249.0,59248.0,0.069798]
[1725105950745,1.63189207,59249.0,59248.0,0.069798]
[1725105950969,1.64589207,59249.0,59248.0,0.069798]
[1725105951196,1.65589207,59249.0,59248.0,0.069798]
[1725105952537,2.64846744,59249.0,59248.0,0.069798]
[1725105954826,2.67494498,59249.0,59248.0,0.069798]
[1725105956595,2.64846744,59249.0,59248.0,0.069798]
[1725105963097,2.64846744,59249.0,59248.0,0.074798]
[1725105964414,1.65589207,59249.0,59248.0,0.074798]
[1725105979415,1.65589207,59249.0,59248.0,0.12549946]
[1725105981364,1.65589207,59249.0,59248.0,0.074798]
[1725105981766,1.65589207,59249.0,59248.0,0.1255437]
[1725105982485,1.65589207,59249.0,59248.0,0.074798]
[1725105986274,1.65589207,59249.0,59248.0,0.013998]
[1725105986684,1.65589207,59249.0,59248.0,0.06475037]
[1725105987683,1.65589207,59249.0,59248.0,0.06475082]
[1725105990546,1.65589207,59249.0,59248.0,0.05975082]
[1725105990746,1.65589207,59249.0,59248.0,0.008998]
[1725105994132,2.67494559,59249.0,59248.0,0.008998]
[1725105994931,2.73864559,59249.0,59248.0,0.008998]
[1725105995548,2.67494559,59249.0,59248.0,0.008998]
[1725105996411,2.64846744,59249.0,59248.0,0.008998]